Cogmind - Beta 15 @@@ ROGUE MODE // 2025.06.28 @ 23:34:22 Player: shockman27 Result: Destroyed by G-73 Enforcer with Heavy Laser Performance ------------- Evolutions (8) 4000 Regions Visited (14) 2800 Robots Destroyed (135) 675 Value Destroyed (4566) 4566 Prototype IDs (45) 900 Alien Tech Used (4) 800 Bonus (2395) 2395 TOTAL SCORE: 16136 Bonus ------- High Alert Combat Kills 105 Follower Combat Kills 374 Registered with UFD 300 Met Optimus in HQ 500 Met Data Miner 300 Hacked Protovariant 500 Scanned by Researcher 500 Friendly Fire -184 Cogmind --------- Core Integrity 0/1450 Matter 134/300 Energy 100/100 System Corruption 2% Temperature Cool (0) Movement Core (50) Location -2/Testing Parts ------- > --- POWER (2) -------- (None) > --- PROPULSION (8) --- (None) > --- UTILITY (11) ----- Advanced Signal Interpreter Graphene Brace Hacking Suite Hacking Suite Improved System Shield > --- WEAPON (2) ------- (None) > --- INVENTORY (5) ---- Light Ion Engine Gamma Rifle Core Cannon CPS Tube (2) Peak State ------------ > --- POWER ------------ Light Antimatter Reactor Micro Antimatter Reactor > --- PROPULSION ------- Gravmag System Combat Gravmag System Improved Antigrav System Improved Antigrav System Improved Antigrav System Improved Linear Gravjet Backup Propulsion VII Backup Propulsion VII > --- UTILITY ---------- Advanced Heat Sink Large Storage Unit Advanced Signal Interpreter 0b10 Decoder Chip [Scout] Graphene Brace Hacking Suite Hacking Suite Hacking Suite Improved Hacking Suite Advanced System Shield Advanced System Shield > --- WEAPON ----------- Sigix Broadsword > --- INVENTORY -------- Advanced Heat Sink Compact Matter Pod Cloaking Device Improved System Shield Advanced Corruption Screen Improved System Restoration Module Gamma Rifle Core Cannon Hardcell Cannon Fusion Bomb Launcher Fusion Bomb Launcher CPS Tube CPS Tube Chainsword [Rating: 154] Favorites ----------- Power Ion Engine Engine Ion Engine Power Core Light Fission Core Reactor Light Antimatter Reactor Propulsion Armored Wheel Treads Light Treads Leg Myomer Leg Wheel Armored Wheel Hover Unit Combat Gravmag System Flight Unit Makeshift Flight Unit Utility Hacking Suite Device Advanced Sensor Array Storage Large Storage Unit Processor 0b10 Decoder Chip [Scout] Hackware Hacking Suite Protection Improved Light Armor Plating Weapon Power Sword Energy Gun Precision Shock Rifle Energy Cannon Subdweller Beam Cannon Ballistic Gun Light Assault Rifle Ballistic Cannon Battle Cannon Launcher Grenade Launcher Special Weapon Mining Laser Impact Weapon Hammer Slashing Weapon Power Sword Build | -11 -10 -10 -8 -6 -6 -6 -6 -5 -5 -4 -3 -3 -2 -2 ------- Run | Yrd Mat Sub Scr Fac Low Low Dat Pro Fac Fac Res Qua Res Tes Slots Evolved 16 | . . . . 8 . . . . 2 2 2 . 2 . Power 1 | . . . . 1 . . . . . . . . . . Propulsion 6 | . . . . 4 . . . . . . 1 . 1 . Utility 9 | . . . . 3 . . . . 2 2 1 . 1 . Weapon . | . . . . . . . . . . . . . . . Parts Attached 163 | 7 10 6 5 29 3 . . . 20 17 34 18 9 5 Power 28 | 1 . 1 . 4 2 . . . 4 6 7 2 1 . Engine 7 | 1 . 1 . . 2 . . . 1 1 . . 1 . Core 9 | . . . . 4 . . . . 3 1 1 . . . Reactor 12 | . . . . . . . . . . 4 6 2 . . Propulsion 57 | 2 3 3 2 11 1 . . . 9 3 12 8 2 1 Treads 8 | 2 1 2 . 3 . . . . . . . . . . Leg 8 | . . . . . . . . . . . 7 1 . . Wheel 4 | . 2 . 2 . . . . . . . . . . . Hover 36 | . . . . 8 1 . . . 9 3 5 7 2 1 Flight 1 | . . 1 . . . . . . . . . . . . Utility 43 | 2 2 . 2 9 . . . . 3 7 8 4 4 2 Device 23 | 1 1 . 1 3 . . . . 2 5 4 3 2 1 Storage 4 | 1 1 . 1 . . . . . . . . . 1 . Processor 7 | . . . . 5 . . . . . . 2 . . . Hackware 8 | . . . . 1 . . . . 1 2 1 1 1 1 Protection 1 | . . . . . . . . . . . 1 . . . Artifact . | . . . . . . . . . . . . . . . Weapon 35 | 2 5 2 1 5 . . . . 4 1 7 4 2 2 Energy Gun 6 | 1 . . . 2 . . . . . . 3 . . . Energy Cannon 12 | . 1 1 . 2 . . . . 2 1 2 1 . 2 Ballistic Gun 5 | 1 1 . . 1 . . . . 1 . 1 . . . Ballistic Cannon 4 | . . 1 . . . . . . . . 1 1 1 . Launcher 2 | . 1 . . . . . . . . . . . 1 . Special Weapon 1 | . 1 . . . . . . . . . . . . . Impact Weapon 1 | . 1 . . . . . . . . . . . . . Slashing Weapon 4 | . . . 1 . . . . . 1 . . 2 . . Piercing Weapon . | . . . . . . . . . . . . . . . Special Melee Weapon . | . . . . . . . . . . . . . . . Unidentified Prototypes 16 | . . . . 3 . . . . 2 1 2 5 2 1 Parts Lost 84 | . 1 2 . 1 1 . . . 10 9 27 12 3 18 Power 21 | . . 1 . 1 1 . . . 5 2 6 2 1 2 Propulsion 32 | . 1 . . . . . . . 2 2 11 6 2 8 Utility 19 | . . . . . . . . . 2 3 5 3 . 6 Weapon 12 | . . 1 . . . . . . 1 2 5 1 . 2 Highest Loss Streak 25 | . 1 2 . 1 1 . . . 3 9 25 8 2 18 To Critical Strikes 2 | . . . . . . . . . . . 2 . . . Average Backups 20 | 3 12 14 28 15 14 15 15 15 14 14 10 13 12 11 Power 1 | . 1 . 1 1 1 2 2 1 . 1 2 1 . 1 Propulsion 3 | 1 3 3 4 . . . . . 2 3 3 2 . . Utility 7 | . 3 5 11 7 8 8 8 8 6 6 2 2 5 5 Weapon 6 | . 4 5 10 5 4 4 4 4 3 1 1 4 5 4 Tool/Special . | . . . . . . . . . . . . . . . Unused Backups 59 | . 7 . 13 16 . . . 1 9 1 1 4 2 5 Power 8 | . 2 . 3 1 . . . 1 . . . . . 1 Propulsion 9 | . 4 . 2 1 . . . . 1 . . 1 . . Utility 22 | . . . 4 7 . . . . 7 . 1 1 . 2 Weapon 17 | . 1 . 4 7 . . . . 1 1 . 1 1 1 Tool/Special 3 | . . . . . . . . . . . . 1 1 1 Average Slot Usage (%) 87 | . 100 100 81 89 85 86 86 86 89 93 90 91 93 76 Engine 9 | . 14 14 13 2 7 13 13 13 7 . . . 1 3 Core 1 | . . . . 9 4 . . . 1 . 2 . . . Reactor 1 | . . . . . . . . . . 7 6 8 6 3 Treads 4 | . 18 22 2 2 . . . . . . . . . . Leg 1 | . . . . . . . . . . . 10 14 . . Wheel 12 | . 9 5 24 1 . . . . . . . . . . Hover 10 | . . . . 25 26 26 26 26 28 30 16 13 32 22 Device 6 | . 14 14 1 5 6 6 6 6 9 14 12 10 7 4 Storage 10 | . 14 14 13 6 6 6 6 6 5 5 4 4 4 3 Processor 4 | . . . . 12 13 13 13 13 11 10 10 9 8 7 Hackware 4 | . . . . 5 6 6 6 6 10 12 16 20 25 23 Energy Cannon 4 | . 11 13 3 2 2 3 5 5 3 . 1 3 . . Ballistic Gun 1 | . 11 . . 1 . . . . . 4 1 . . . Ballistic Cannon 5 | . . 12 10 . . . . . . . 1 1 1 . Slashing Weapon 6 | . . . 10 6 3 6 6 6 5 2 . 2 3 1 Peak Build Rating 154 | 7 11 13 22 71 71 71 71 71 93 105 124 145 154 134 Average Rating 43 | 5 8 11 18 56 70 71 70 70 81 94 101 116 136 108 On Entrance 63 | . 7 11 11 21 71 71 71 68 71 74 105 104 143 127 Naked Turns 62 | . . . 62 . . . . . . . . . . . Heaviest Build 233 | 14 31 37 216 233 51 52 52 52 53 61 70 68 55 61 Greatest Support 155 | 40 40 40 40 57 57 57 57 57 84 84 155 140 95 83 Greatest Overweight (x) 9 | . 2 1 8 9 . . . . 9 1 1 2 . 4 Average Overweight (x) 1 | . . . 6 . . . . . . . . . . . Largest Inventory Capacity 35 | 8 15 15 35 35 15 15 15 15 15 15 15 15 15 15 Average Capacity 22 | 6 14 15 32 15 15 15 15 15 15 15 15 15 15 13 Most Carried 35 | 7 15 15 35 34 15 15 15 15 15 15 15 15 15 15 Average Carried 20 | 3 12 14 29 15 14 15 15 14 14 14 10 13 14 12 Final Capacity 35 | 8 15 15 35 15 15 15 15 15 15 15 15 15 15 5 Final Carried 35 | 7 15 15 35 15 15 15 15 15 14 14 14 12 15 5 Class Distribution -------------------- 38% | Hauler-Mutant 21% | Mutant 11% | Hacker-Mutant 10% | Scavenger-Mutant 9% | Hacker-Scout 4% | Derelict-Mutant Dominant Class ---------------- Mutant | -10/Materials Scavenger-Mutant | -10/Subcaves Hauler-Mutant | -8/Scraptown Derelict-Mutant | -6/Factory Mutant | -6/Lower Caves Mutant | -6/Lower Caves Mutant | -6/Data Miner Mutant | -5/Proximity Caves Hacker-Scout | -5/Factory Hacker-Mutant | -4/Factory Scavenger-Mutant | -3/Research Hacker-Mutant | -3/Quarantine Wizard-Mutant | -2/Research Wizard-Mutant | -2/Testing Resources | -11 -10 -10 -8 -6 -6 -6 -6 -5 -5 -4 -3 -3 -2 -2 ----------- Run | Yrd Mat Sub Scr Fac Low Low Dat Pro Fac Fac Res Qua Res Tes Matter Collected 4179 | 275 284 175 390 772 254 17 . 30 443 306 616 387 163 67 Remotely . | . . . . . . . . . . . . . . . Salvage Created 5322 | 76 1203 171 . 778 103 179 . . 642 251 940 517 373 89 Parts 302 | 5 69 11 . 49 4 2 . . 43 22 42 24 21 10 Haulers Intercepted 3 | . 2 . . 1 . . . . . . . . . . Recyclers Shooed 8 | 1 4 . . 1 . . . . . . 1 . . 1 Parts Field Recycled . | . . . . . . . . . . . . . . . Retrieved Matter . | . . . . . . . . . . . . . . . Parts Self-Destructed 4 | . . . . . 2 2 . . . . . . . . Prevented 1 | . . . . . . 1 . . . . . . . . Kills | -11 -10 -10 -8 -6 -6 -6 -6 -5 -5 -4 -3 -3 -2 -2 ------- Run | Yrd Mat Sub Scr Fac Low Low Dat Pro Fac Fac Res Qua Res Tes Combat Hostiles Destroyed 85 | . 22 5 . 16 4 . . . 14 2 8 6 5 3 Melee 4 | . . . . 3 . . . . . . . 1 . . Guns 14 | . 6 . . 1 . . . . 1 2 4 . . . Cannons 24 | . 11 5 . . . . . . 2 . 2 4 . . AOE 40 | . 5 . . 12 4 . . . 11 . . . 5 3 Classes Destroyed 14 | 2 6 1 . 1 . . . . 1 . 2 . . 1 Worker 7 | . 1 . . 1 . . . . 1 1 1 . 1 1 Builder 3 | . . . . . . . . . 1 1 . . . 1 Tunneler 5 | 1 . . . 1 . . . . . 2 1 . . . Hauler 3 | . 2 . . 1 . . . . . . . . . . Recycler 15 | 1 3 . . 2 . . . . 2 1 3 1 2 . Operator 9 | . 4 . . 2 . . . . 2 . . . 1 . Watcher 6 | . 3 . . 2 . . . . . . 1 . . . Swarmer 38 | . 3 . . 14 4 . . . 8 1 . . 5 3 Grunt 26 | . 19 . . . . . . . 2 . 2 3 . . Researcher 2 | . . . . . . . . . . . . . . 2 Specialist 1 | . . . . . . . . . . . 1 . . . Hunter 4 | . . . . . . . . . . . 4 . . . Programmer 11 | . . . . 2 . . . . 4 1 1 3 . . Subdweller 5 | . . 5 . . . . . . . . . . . . Best Kill Streak 8 | 2 3 1 . 7 4 . . . 5 2 8 2 5 6 Combat Bots Only 7 | . 3 1 . 7 4 . . . 4 2 4 2 5 3 Max Kills in Single Turn 4 | 1 2 1 . 3 3 . . . 3 1 1 1 4 2 Gunslinging . | . . . . . . . . . . . . . . . Exploded 4 | . 2 . . 3 3 . . . 3 . . . 4 1 Melee 1 | . . . . 1 . . . . . . . 1 . . Uniques/NPCs Destroyed . | . . . . . . . . . . . . . . . Combat | -11 -10 -10 -8 -6 -6 -6 -6 -5 -5 -4 -3 -3 -2 -2 -------- Run | Yrd Mat Sub Scr Fac Low Low Dat Pro Fac Fac Res Qua Res Tes Hostile Shots Fired 1001 | . 72 26 . 43 13 . . . 116 79 323 92 11 226 Missed 332 | . 18 5 . 15 3 . . . 51 18 121 23 8 70 Hits 669 | . 54 21 . 28 10 . . . 65 61 202 69 3 156 Melee 2 | . . . . . 2 . . . . . . . . . Projectile 667 | . 54 21 . 28 8 . . . 65 61 202 69 3 156 AOE 1 | . . . . . . . . . 1 . . . . . Critical Strikes 32 | . . 1 . . . . . . 3 5 14 5 . 4 Actively Blocked 4 | . . . . . . . . . . . . . . 4 Part Disruptions 5 | . . . . . . . . . 2 . 1 2 . . Damage Taken 13195 | . 683 464 . 464 140 . . . 1601 1124 4184 1559 116 2860 Core 3560 | . 116 75 . 94 . . . . 391 228 907 296 20 1433 Absorbed by Shields . | . . . . . . . . . . . . . . . Regen/Repaired (Parts) 422 | . . . 317 73 . . . . . . . . . 32 Core Remaining (%) 59 | 100 . . 23 . . . . 88 60 80 . 7 . . Volleys Fired 330 | 5 95 21 . 27 9 3 . 8 38 23 62 21 5 13 Largest 2 | 2 2 2 . 1 2 1 . 1 1 2 2 2 1 1 Hottest 160 | 70 160 113 . 90 145 90 . 90 98 90 152 160 55 120 Shots Fired 509 | 10 185 42 . 27 11 3 . 8 38 29 102 36 5 13 Gun 225 | 10 102 9 . 5 5 . . . 11 25 58 . . . Cannon 238 | . 74 33 . 13 3 3 . 8 12 4 44 36 2 6 Launcher 40 | . 3 . . 9 3 . . . 15 . . . 3 7 Special 6 | . 6 . . . . . . . . . . . . . Kinetic 205 | 5 84 21 . 2 . . . . 11 20 45 15 2 . Thermal 234 | 5 98 21 . 13 3 3 . 8 12 4 40 21 . 6 Explosive 40 | . 3 . . 9 3 . . . 15 . . . 3 7 Electromagnetic 30 | . . . . 3 5 . . . . 5 17 . . . Robot Hit Streak 12 | 2 9 11 . 6 5 . . . 5 5 12 8 2 3 Robot Miss Streak 7 | 2 7 2 . 6 2 . . . 4 2 3 5 2 3 Penetration Max 1 | . . . . . . . . . . . 1 . . . Secondary Targets 1 | . . . . . . . . . . . 1 . . . Max Gunslinging Chain 1 | . . . . . . . . . . . 1 . . . Shots Hit Robots 313 | 5 99 29 . 26 9 3 . . 21 21 59 25 8 8 Core Hits 194 | 3 52 7 . 31 6 1 . . 30 8 26 8 7 15 Critical Kills 4 | . 1 . . . . . . . . . 2 1 . . Critical Parts Destroyed 2 | . . . . . . . . . . . 2 . . . Critical Strikes 15 | . 3 2 . . . . . . . 1 6 2 . 1 Burn 3 | . 2 1 . . . . . . . . . . . . Meltdown 4 | . 1 . . . . . . . . . 2 1 . . Destroy 2 | . . . . . . . . . . . 2 . . . Blast 2 | . . 1 . . . . . . . . 1 . . . Corrupt 1 | . . . . . . . . . . . 1 . . . Sever 3 | . . . . . . . . . . 1 . 1 . 1 Melee Attacks 169 | . 6 . . 43 4 4 . 3 42 23 . 21 14 9 Impact 6 | . 6 . . . . . . . . . . . . . Slashing 163 | . . . . 43 4 4 . 3 42 23 . 21 14 9 Piercing . | . . . . . . . . . . . . . . . Sneak Attacks 20 | . . . . 7 . . . . 3 5 . 1 3 1 Combat Hostiles . | . . . . . . . . . . . . . . . Follow-up Attacks . | . . . . . . . . . . . . . . . Damage Inflicted 14065 | 57 1655 635 . 1845 516 236 . . 1813 825 2055 1131 1252 2045 Guns 2272 | 57 530 63 . 65 35 . . . 183 282 1057 . . . Cannons 3549 | . 733 572 . 32 93 . . . 128 . 998 909 . 84 Explosions 4493 | . 342 . . 729 204 . . . 1167 . . . 560 1491 Melee 3672 | . . . . 1019 184 236 . . 335 543 . 222 692 441 Ramming 29 | . . . . . . . . . . . . . . 29 Kinetic 2590 | 20 388 286 . 29 . . . . 183 231 1013 440 . . Thermal 3190 | 37 925 349 . 32 93 . . . 471 . 730 469 . 84 Explosive 4150 | . 342 . . 729 204 . . . 824 . . . 560 1491 Electromagnetic 434 | . . . . 36 35 . . . . 51 312 . . . Impact . | . . . . . . . . . . . . . . . Slashing 3672 | . . . . 1019 184 236 . . 335 543 . 222 692 441 Piercing . | . . . . . . . . . . . . . . . Highest Corruption 26 | . . . . 3 3 3 3 3 23 7 11 26 . 2 Average Corruption 8 | . . . . 3 3 3 3 3 15 6 5 18 . 2 Corruption Purged . | . . . . . . . . . . . . . . . Corruption Blocked . | . . . . . . . . . . . . . . . Effects 126 | . . . . 17 6 3 2 3 39 13 13 30 . . Message Errors 29 | . . . . 4 1 1 . 1 8 4 5 5 . . Matter Fused 33 | . . . . 8 2 1 . 1 10 3 1 7 . . Heat Flow Errors 19 | . . . . 1 . . 1 1 4 3 2 7 . . Energy Discharges 13 | . . . . 2 1 . . . 6 1 1 2 . . Parts Rejected 3 | . . . . . 1 . . . 1 . 1 . . . Data Loss (minor) 11 | . . . . 2 . . . . 3 . 1 5 . . Data Loss (major) 5 | . . . . . . 1 1 . 1 1 . 1 . . Misfires 3 | . . . . . . . . . 2 1 . . . . Alerts 3 | . . . . . . . . . 1 . 1 1 . . Misdirections 2 | . . . . . . . . . 1 . . 1 . . Weapon Failures 5 | . . . . . 1 . . . 2 . 1 1 . . Overload Shots . | . . . . . . . . . . . . . . . Overflow Damage 1395 | . 24 . . 146 101 120 . . 124 98 77 67 290 348 Projectiles 170 | . 19 . . . 12 . . . 23 . 77 25 . 14 Explosions 344 | . 5 . . . 35 . . . 70 . . . 76 158 Melee 881 | . . . . 146 54 120 . . 31 98 . 42 214 176 Knockbacks 15 | . . 3 . . . . . . . . 4 8 . . Impact . | . . . . . . . . . . . . . . . Kinetic 13 | . . 3 . . . . . . . . 4 6 . . Secondary 2 | . . . . . . . . . . . . 2 . . Self-Inflicted Damage 319 | . 7 . . 34 . . . . 188 . . . 45 45 Shots 10 | . 1 . . 2 . . . . 4 . . . 1 2 Rammed 8 | . . . . . . . . . . . . . . 8 Targets Rammed 8 | . . . . . . . . . . . . . . 8 Kicked . | . . . . . . . . . . . . . . . Crushed . | . . . . . . . . . . . . . . . Highest Temperature 550 | 90 325 3 . 364 250 134 197 267 268 319 243 311 277 550 Average Temperature 94 | 44 50 3 . 132 121 69 102 126 105 137 70 50 75 162 Received Heat Transfer 1156 | . 375 75 . . . . . . 120 27 310 96 . 153 Effects 29 | . 1 . . 4 3 . . . 2 7 1 . . 11 Shutdowns 6 | . 1 . . . . . . . . . . . . 5 Energy Bleed 4 | . . . . . . . . . 2 1 1 . . . Interference 13 | . . . . 3 3 . . . . 6 . . . 1 Matter Decay 1 | . . . . 1 . . . . . . . . . . Damage (minor) 1 | . . . . . . . . . . . . . . 1 Damage (major) 4 | . . . . . . . . . . . . . . 4 Siege Activations . | . . . . . . . . . . . . . . . Martial Activations . | . . . . . . . . . . . . . . . Shielding Activations . | . . . . . . . . . . . . . . . Robots Disrupted 1 | . . . . . . . . . . . 1 . . . Combat Hostiles 1 | . . . . . . . . . . . 1 . . . Robots Corrupted . | . . . . . . . . . . . . . . . Combat Hostiles . | . . . . . . . . . . . . . . . Parts Fried 3 | . . . . . . . . . . . 3 . . . Impact Corruptions 1 | . . . . . . . . . . . . 1 . . Robots Melted 4 | . 1 . . . . . . . . . 2 1 . . Combat Hostiles 3 | . . . . . . . . . . . 2 1 . . Parts Melted 7 | . 2 1 . . . . . . . . 3 1 . . Heat Transferred 4696 | 111 2172 629 . 50 150 . . . 287 . 816 407 . 74 Parts Sabotaged . | . . . . . . . . . . . . . . . Parts Stolen 1 | . . . . . 1 . . . . . . . . . Parts Stripped . | . . . . . . . . . . . . . . . Power Chain Reactions . | . . . . . . . . . . . . . . . Alert | -11 -10 -10 -8 -6 -6 -6 -6 -5 -5 -4 -3 -3 -2 -2 ------- Run | Yrd Mat Sub Scr Fac Low Low Dat Pro Fac Fac Res Qua Res Tes Maximum Alert Level 3 | . 1 . . 1 . . . . 3 1 . . 1 1 Low Security (%) 68 | 100 93 . . 83 . . . . 22 24 100 100 82 61 Level 1 22 | . 6 . . 16 . . . . 36 75 . . 17 38 Level 2 7 | . . . . . . . . . 34 . . . . . Level 3 1 | . . . . . . . . . 6 . . . . . Level 4 . | . . . . . . . . . . . . . . . Level 5 . | . . . . . . . . . . . . . . . High Security . | . . . . . . . . . . . . . . . Max Security . | . . . . . . . . . . . . . . . Peak Influence 750 | 10 269 . . 368 . . . . 750 365 166 96 217 334 Initial 360 | . . . . . . . . . 300 360 71 69 33 . Average 164 | 1 71 . . 136 . . . . 365 251 80 51 73 138 Influence Increases 4908 | 10 741 . . 740 90 10 . . 1366 247 664 296 285 459 Destroy 0b10 Robot/C 1780 | . 440 . . 320 80 . . . 280 40 300 120 100 100 Destroy 0b10 Robot/NC 250 | 10 65 . . 45 . 10 . . 30 25 30 5 20 10 Destroy Leader 338 | . 100 . . 66 10 . . . 60 . 72 10 10 10 Allied During Kill 66 | . . . . . . . . . . . 66 . . . Successful Hack 164 | . 21 . . 39 . . . . 26 21 22 . 8 27 Select Force Hacks 60 | . 60 . . . . . . . . . . . . . Disable Machine 450 | . 15 . . 15 . . . . 75 45 75 135 . 90 Destroy Structure 780 | . 25 . . 60 . . . . 250 26 54 26 117 222 Advance Influence 300 | . . . . . . . . . 300 . . . . . Partial Spotted 135 | . . . . 105 . . . . 15 . . . 15 . Lose Combat Pursuer 585 | . 15 . . 90 . . . . 330 90 45 . 15 . Influence Decreases 4719 | 10 490 251 . 378 265 96 101 . 630 846 676 362 344 270 Entered New Map 917 | . . 121 . . 135 36 101 . . 376 66 56 26 . Time Decay 2822 | 10 480 110 . 358 120 60 . . 530 380 284 252 148 90 Lost Part 720 | . 10 20 . 10 10 . . . 100 90 226 54 20 180 Lost Ally 110 | . . . . 10 . . . . . . 100 . . . Purge Threat 150 | . . . . . . . . . . . . . 150 . Squads Dispatched 53 | . 6 . . 14 . . . . 9 4 6 3 3 8 Investigation 17 | . 2 . . 8 . . . . 2 2 1 . 2 . Extermination 13 | . . . . 3 . . . . 4 1 2 2 1 . Reinforcement 20 | . 4 . . 3 . . . . 3 1 3 1 . 5 Assault 1 | . . . . . . . . . . . . . . 1 Garrison 2 | . . . . . . . . . . . . . . 2 Intercept . | . . . . . . . . . . . . . . . Searches Triggered . | . . . . . . . . . . . . . . . Data Miner Redirects 4 | . . . . . . . . . . . 1 . 2 1 Construction Impeded 2 | . . . . . . . . . 1 . . . . 1 Haulers Reinforced 2 | . . . . . . . . . . . 1 . . 1 Active Scanning Responses . | . . . . . . . . . . . . . . . Cargo Convoy Interrupts . | . . . . . . . . . . . . . . . Stealth | -11 -10 -10 -8 -6 -6 -6 -6 -5 -5 -4 -3 -3 -2 -2 --------- Run | Yrd Mat Sub Scr Fac Low Low Dat Pro Fac Fac Res Qua Res Tes Distress Signals 15 | . 4 . . 1 . . . . 4 . 1 1 1 3 Communications Jammed . | . . . . . . . . . . . . . . . Distress Signals . | . . . . . . . . . . . . . . . Times Spotted 213 | . 36 5 . 30 5 . . 2 45 12 29 12 9 28 Peak Tracking Total 20 | . 4 2 . 7 4 . . 2 11 6 11 4 5 20 Tactical Retreats 23 | . 1 . . 5 . . . . 10 4 2 . 1 . Traps | -11 -10 -10 -8 -6 -6 -6 -6 -5 -5 -4 -3 -3 -2 -2 ------- Run | Yrd Mat Sub Scr Fac Low Low Dat Pro Fac Fac Res Qua Res Tes Traps Triggered 6 | . 1 . . . . . . . 4 . 1 . . . Indirectly . | . . . . . . . . . . . . . . . Trap Hack Attempts . | . . . . . . . . . . . . . . . Triggered . | . . . . . . . . . . . . . . . Disarmed . | . . . . . . . . . . . . . . . Reprogrammed . | . . . . . . . . . . . . . . . Reused . | . . . . . . . . . . . . . . . Traps Extracted . | . . . . . . . . . . . . . . . Installed . | . . . . . . . . . . . . . . . Triggered . | . . . . . . . . . . . . . . . Machines | -11 -10 -10 -8 -6 -6 -6 -6 -5 -5 -4 -3 -3 -2 -2 ---------- Run | Yrd Mat Sub Scr Fac Low Low Dat Pro Fac Fac Res Qua Res Tes Machines Disabled 30 | . 1 . . 1 . . . . 5 3 5 9 . 6 Max in Single Turn 2 | . 1 . . 1 . . . . 1 1 1 1 . 2 Garrison Access 2 | . . . . 1 . . . . . 1 . . . . Machines Repaired . | . . . . . . . . . . . . . . . Machines Dismantled . | . . . . . . . . . . . . . . . Machines Sabotaged . | . . . . . . . . . . . . . . . Overloaded Fab Kills . | . . . . . . . . . . . . . . . Hacking | -11 -10 -10 -8 -6 -6 -6 -6 -5 -5 -4 -3 -3 -2 -2 --------- Run | Yrd Mat Sub Scr Fac Low Low Dat Pro Fac Fac Res Qua Res Tes Machines Accessed 57 | . 6 . 6 16 . . 4 . 6 5 2 5 5 2 Terminals 29 | . 4 . . 8 . . . . 4 2 1 5 3 2 Fabricators . | . . . . . . . . . . . . . . . Repair Stations 1 | . . . . 1 . . . . . . . . . . Recycling Units 15 | . 2 . . 6 . . . . 2 2 1 . 2 . Scanalyzers . | . . . . . . . . . . . . . . . Garrison Access 2 | . . . . 1 . . . . . 1 . . . . Total Hacks 196 | . 18 . 36 39 . . 33 . 12 8 5 19 17 9 Successful 151 | . 10 . 36 29 . . 33 . 7 5 3 10 13 5 Failed 45 | . 8 . . 10 . . . . 5 3 2 9 4 4 Catastrophic 8 | . 1 . . 4 . . . . . 1 . 2 . . Database Lockouts . | . . . . . . . . . . . . . . . Manual 71 | . 16 . . 23 . . . . 8 3 3 4 9 5 Terminals 103 | . 16 . . 27 . . . . 9 4 4 19 15 9 Fabricators . | . . . . . . . . . . . . . . . Repair Stations 4 | . . . . 4 . . . . . . . . . . Recycling Units 17 | . 2 . . 7 . . . . 3 2 1 . 2 . Scanalyzers . | . . . . . . . . . . . . . . . Garrison Access 3 | . . . . 1 . . . . . 2 . . . . Terminal Hacks 106 | . 6 . 36 9 . . 33 . 2 1 . 9 7 3 Record 55 | . 1 . 35 . . . 11 . . 1 . 6 1 . Part Schematic 12 | . . . . . . . 12 . . . . . . . Robot Schematic 7 | . . . . . . . 7 . . . . . . . Robot Analysis 5 | . 3 . . . . . . . . . . 1 1 . Prototype ID Bank 6 | . 1 . . 1 . . 3 . . . . . . 1 Level Access Points 2 | . . . . . . . . . . . . . 1 1 Branch Access Points 2 | . . . . 1 . . . . . . . . 1 . Terminal Index 1 | . 1 . . . . . . . . . . . . . Recycling Unit Index 2 | . . . . 1 . . . . . . . . 1 . Alert Level 2 | . . . . 1 . . . . . . . . 1 . Unreport Threat 1 | . . . . . . . . . . . . . 1 . Locate Traps 3 | . . . . 2 . . . . 1 . . . . . Recall Extermination 3 | . . . . 1 . . . . . . . 2 . . Recall Reinforcements 1 | . . . . . . . . . 1 . . . . . Hauler Manifests 1 | . . . . 1 . . . . . . . . . . Zone Layout 1 | . . . . 1 . . . . . . . . . . Proto ID Catalog 1 | . . . 1 . . . . . . . . . . . Protovariant Controls 1 | . . . . . . . . . . . . . . 1 Fabricator Hacks . | . . . . . . . . . . . . . . . Repair Station Hacks 4 | . . . . 4 . . . . . . . . . . Scan Component 2 | . . . . 2 . . . . . . . . . . Repair 2 | . . . . 2 . . . . . . . . . . Recycling Unit Hacks . | . . . . . . . . . . . . . . . Scanalyzer . | . . . . . . . . . . . . . . . Garrison Access Hacks 2 | . . . . 1 . . . . . 1 . . . . Seal Access 2 | . . . . 1 . . . . . 1 . . . . Unauthorized Hacks 39 | . 4 . . 15 . . . . 5 3 3 1 6 2 Terminals 24 | . 2 . . 9 . . . . 3 1 2 1 4 2 Track 1 | . . . . 1 . . . . . . . . . . Assimilate 2 | . . . . 2 . . . . . . . . . . Botnet 17 | . 2 . . 5 . . . . 3 1 1 1 3 1 Operators 4 | . . . . 1 . . . . . . 1 . 1 1 Fabricators . | . . . . . . . . . . . . . . . Repair Stations . | . . . . . . . . . . . . . . . Recycling Units 15 | . 2 . . 6 . . . . 2 2 1 . 2 . Tunnel 2 | . 2 . . . . . . . . . . . . . Fedlink 12 | . . . . 6 . . . . 2 2 . . 2 . Scrapoids 1 | . . . . . . . . . . . 1 . . . Scanalyzers . | . . . . . . . . . . . . . . . Garrison Access . | . . . . . . . . . . . . . . . Data Cores Recovered 1 | . . . . . . . . . . . . . 1 . Used . | . . . . . . . . . . . . . . . Hacking Detections 31 | . 4 . . 10 . . . . 5 3 1 4 2 2 Full Trace Events 2 | . . . . 2 . . . . . . . . . . Feedback Events . | . . . . . . . . . . . . . . . Feedback Blocked . | . . . . . . . . . . . . . . . Robot Schematics Acquired 7 | . . . . . . . 7 . . . . . . . Robots Built . | . . . . . . . . . . . . . . . Authchips . | . . . . . . . . . . . . . . . Time . | . . . . . . . . . . . . . . . Total Robot Build Rating . | . . . . . . . . . . . . . . . Part Schematics Acquired 15 | . . . . . . . 12 . . . . . . 3 Parts Built . | . . . . . . . . . . . . . . . Authchips . | . . . . . . . . . . . . . . . Time . | . . . . . . . . . . . . . . . Total Part Build Rating . | . . . . . . . . . . . . . . . Parts Repaired 2 | . . . . 2 . . . . . . . . . . Time 38 | . . . . 38 . . . . . . . . . . Parts Recycled . | . . . . . . . . . . . . . . . Recycled Matter . | . . . . . . . . . . . . . . . Retrieved Matter . | . . . . . . . . . . . . . . . Retrieved Components . | . . . . . . . . . . . . . . . Parts Scanalyzed . | . . . . . . . . . . . . . . . Part Schematics Acquired . | . . . . . . . . . . . . . . . Parts Damaged . | . . . . . . . . . . . . . . . Bothacking | -11 -10 -10 -8 -6 -6 -6 -6 -5 -5 -4 -3 -3 -2 -2 ------------ Run | Yrd Mat Sub Scr Fac Low Low Dat Pro Fac Fac Res Qua Res Tes Used RIF Installer . | . . . . . . . . . . . . . . . Robots Hacked . | . . . . . . . . . . . . . . . Non-combat . | . . . . . . . . . . . . . . . Combat . | . . . . . . . . . . . . . . . Robot Hacks Applied . | . . . . . . . . . . . . . . . Relay Couplers Released . | . . . . . . . . . . . . . . . Fabnet Peak Effective % . | . . . . . . . . . . . . . . . Robots Rewired . | . . . . . . . . . . . . . . . Allies Hacked . | . . . . . . . . . . . . . . . Hacks Repelled . | . . . . . . . . . . . . . . . Allies | -11 -10 -10 -8 -6 -6 -6 -6 -5 -5 -4 -3 -3 -2 -2 -------- Run | Yrd Mat Sub Scr Fac Low Low Dat Pro Fac Fac Res Qua Res Tes Total Allies 6 | . . . . 1 . . . . . . 5 . . . Largest Group 5 | . . . . 1 . . . . . . 5 . . . Highest-Rated Group 320 | . . . . 10 . . . . . . 320 . . . Highest-Rated Ally 64 | . . . . 10 . . . . . . 64 . . . Total Orders . | . . . . . . . . . . . . . . . Ally Attacks 48 | . . . . . . . . . . . 48 . . . Total Damage 1297 | . . . . . . . . . . . 1297 . . . Kills 7 | . . . . . . . . . . . 7 . . . Allies Corrupted . | . . . . . . . . . . . . . . . Allies Melted . | . . . . . . . . . . . . . . . Intel | -11 -10 -10 -8 -6 -6 -6 -6 -5 -5 -4 -3 -3 -2 -2 ------- Run | Yrd Mat Sub Scr Fac Low Low Dat Pro Fac Fac Res Qua Res Tes Active Infowar (turns) 8501 | 40 1330 566 762 1107 245 134 52 160 1481 884 657 605 309 169 Sensors 4493 | . . . . 983 217 134 52 160 1287 732 603 325 . . Structural 1249 | . . . 22 65 . . . . 862 300 . . . . Seismic 3896 | 40 1330 566 740 . . . . . . 489 446 285 . . Decoding 5778 | . . . . 1106 245 134 52 160 1481 866 657 605 309 163 Machine Analysis 243 | . . . . . . . . . . . 243 . . . Cloaking 6 | . . . . . . . . . . . . . . 6 Robot Analysis Total 5 | . 3 . . . . . . . . . . 1 1 . Derelict Logs Recovered 7 | . . . 3 . 1 1 . 2 . . . . . . Drone Launches . | . . . . . . . . . . . . . . . Drone Recoveries . | . . . . . . . . . . . . . . . Decoded 0b10 Intel 88 | . . . . 17 . . . . 26 10 13 11 7 4 Traps 51 | . . . . . . . . . 25 6 9 7 4 . Emergency Access 33 | . . . . 17 . . . . . 3 3 3 3 4 Garrisons 3 | . . . . . . . . . 1 1 1 . . . Exits 1 | . . . . . . . . . . . . 1 . . Exploration | -11 -10 -10 -8 -6 -6 -6 -6 -5 -5 -4 -3 -3 -2 -2 ------------- Run | Yrd Mat Sub Scr Fac Low Low Dat Pro Fac Fac Res Qua Res Tes Turns Passed 14977 | 129 1802 566 6628 1134 245 134 52 160 1481 884 657 605 309 191 Spaces Moved 12048 | 65 1036 315 3387 1618 415 238 105 275 1895 957 506 600 468 168 Core 178 | 6 . . 161 . . . . . 1 . . . . 10 Treads 1283 | 59 556 254 414 . . . . . . . . . . . Legs 376 | . . . . . . . . . . . 142 234 . . Wheels 3430 | . 480 61 2812 77 . . . . . . . . . . Hover 6781 | . . . . 1541 415 238 105 275 1894 957 364 366 468 158 Flight . | . . . . . . . . . . . . . . . Fastest Speed 37 | 50 105 105 50 44 48 48 48 48 43 59 50 38 37 42 Average Speed 103 | 149 134 149 192 49 48 48 48 48 54 63 76 70 39 50 Slowest Speed 500 | 160 160 160 210 225 48 48 48 48 500 144 190 250 42 250 Overloaded Moves . | . . . . . . . . . . . . . . . Propulsion Burnouts . | . . . . . . . . . . . . . . . Robots Hopped . | . . . . . . . . . . . . . . . Potential Cave-ins 6 | . . . . 2 . . . . . . 4 . . . Cave-ins Triggered . | . . . . . . . . . . . . . . . Exploration Rate (%) 43 | 7 99 23 95 52 56 44 74 65 39 12 14 50 12 17 Regions Visited 14 Branch Regions 8 Pre-discovered Areas 10 | . 2 . 6 1 . . 1 . . . . . . . Known Exits Taken 10 | . . . . 1 1 1 1 1 1 1 1 1 1 . Unknown Exits Taken 4 | 1 1 1 1 . . . . . . . . . . . Scrap Searched 18 | . . 2 10 . 2 2 . 2 . . . . . . Spaces Dug 136 | . 4 . . 30 2 4 . 11 40 13 11 8 9 4 Terrain Destroyed 470 | . 25 . . 72 23 4 . 11 137 14 19 14 62 89 Melee 92 | . 2 . . 21 2 1 . 3 35 9 . 8 8 3 Projectile 69 | . 3 . . 11 . 3 . 8 11 5 19 6 1 2 AOE 309 | . 20 . . 40 21 . . . 91 . . . 53 84 Terrain Rammed . | . . . . . . . . . . . . . . . Walls Destroyed . | . . . . . . . . . . . . . . . Machines Disabled . | . . . . . . . . . . . . . . . Actions | -11 -10 -10 -8 -6 -6 -6 -6 -5 -5 -4 -3 -3 -2 -2 --------- Run | Yrd Mat Sub Scr Fac Low Low Dat Pro Fac Fac Res Qua Res Tes Total 13765 | 84 1251 368 3509 1877 440 247 105 289 2241 1174 671 708 561 240 Wait 617 | 1 71 16 8 78 . 2 . 1 190 123 33 14 54 26 Move 12034 | 64 1035 314 3386 1617 414 237 104 274 1894 956 505 599 467 168 Hop . | . . . . . . . . . . . . . . . Pick Up 202 | 7 17 5 78 22 4 . . 1 18 15 22 9 4 . Fast Attach 72 | 7 1 . 7 10 . . . . 13 6 7 13 6 2 Attach 80 | . 1 2 . 15 3 . . . 7 11 24 10 2 5 Detach 24 | . . . . 4 . . . . 1 3 3 7 2 4 Swap 93 | . 15 6 3 22 4 1 1 1 15 6 10 5 3 1 Drop 134 | . 10 4 27 39 1 . . 1 23 8 5 9 4 3 Fire 330 | 5 95 21 . 27 9 3 . 8 38 23 62 21 5 13 Melee 169 | . 6 . . 43 4 4 . 3 42 23 . 21 14 9 Ram 8 | . . . . . . . . . . . . . . 8 Kick . | . . . . . . . . . . . . . . . Crush . | . . . . . . . . . . . . . . . Escape Stasis 1 | . . . . . . . . . . . . . . 1 Rewire 1 | . . . . . 1 . . . . . . . . . Trap . | . . . . . . . . . . . . . . . Miscellaneous . | . . . . . . . . . . . . . . . Route ------- -11/Scrapyard -10/Materials (discovered 6 exits: [*Mat x3] / [*Min x2] / [*Sub]) -10/Subcaves (discovered 2 exits: [*Mat] / *Scr) -8/Scraptown (discovered 2 exits: *Fac x2) -6/Factory (discovered 6 exits: *Fac x4 / *Low x2) -6/Lower Caves -6/Lower Caves -6/Data Miner -5/Proximity Caves -5/Factory (discovered 3 exits: *Fac / Upp x2) -4/Factory (discovered 2 exits: *Res / [*Upp]) -3/Research (discovered 2 exits: Res / *Qua) -3/Quarantine -2/Research (discovered 5 exits: Acc x3 / *Tes x2) -2/Testing (discovered 1 exit: Acc) History --------- Turn | Location | Event 12 | -11/Scrapyard | Discovered new exit (range 13) 130 | -11/Scrapyard | Entered Materials 302 | -10/Materials | Build established: Mutant 474 | -10/Materials | Discovered new exit (range 14) 719 | -10/Materials | Discovered new exit (range 10) 924 | -10/Materials | Discovered new exit (range 5) 1374 | -10/Materials | Discovered new exit (range 4) 1390 | -10/Materials | Discovered new exit (range 15) 1923 | -10/Materials | Discovered new exit (range 9) 1932 | -10/Materials | Entered Subcaves 1933 | -10/Subcaves | Approached by a straggling Scientist 1934 | -10/Subcaves | Shifting Twisted Machinery released Mak. Flight Unit 1949 | -10/Subcaves | Shifting Twisted Machinery released Battle Cannon 1994 | -10/Subcaves | Shifting Twisted Machinery released Sub. Beam Cannon 1994 | -10/Subcaves | Discovered new exit (range 13) 2016 | -10/Subcaves | Core integrity fell below 50% 2101 | -10/Subcaves | A swath of the cavern ceiling suddenly collapsed 2305 | -10/Subcaves | Scientist uncovered a shortcut to Scraptown 2338 | -10/Subcaves | A swath of the cavern ceiling suddenly collapsed 2345 | -10/Subcaves | Build established: Scavenger-Mutant 2498 | -10/Subcaves | Entered Scraptown 3132 | -8/Scraptown | Visited TADAMA 3174 | -8/Scraptown | Visited Red Mages 3533 | -8/Scraptown | Build established: Hauler-Mutant 3799 | -8/Scraptown | Scanned Subdweller tech in exchange for log data 3803 | -8/Scraptown | Learned location of Quarantine (-3) 3805 | -8/Scraptown | Learned location of Armory (-4) 3807 | -8/Scraptown | Learned Factory trap positions 3841 | -8/Scraptown | Discovered new exit (range 5) 4030 | -8/Scraptown | Visited CR-KLE's Repair Center 4050 | -8/Scraptown | CR-KLE repaired 4 parts 4080 | -8/Scraptown | Visited CPS Storage 4132 | -8/Scraptown | Visited Cave Peace 4300 | -8/Scraptown | Visited Bundlers 4492 | -8/Scraptown | Visited Shadow of the Wyrm 4591 | -8/Scraptown | Visited UFD Registry 4591 | -8/Scraptown | Registered with UFD as "Cargocycle" 4637 | -8/Scraptown | Visited Junk Cannon Lab 4711 | -8/Scraptown | Visited Chapter 10 4786 | -8/Scraptown | Visited Infowarlord's Domain 5120 | -8/Scraptown | Visited DA-N13 Charitable Foundation 5131 | -8/Scraptown | Found DCF Scrap (29 items) 5289 | -8/Scraptown | Visited A0-MCA Data Center 5302 | -8/Scraptown | Given a B rating by A0-MCA 5307 | -8/Scraptown | Found A0-MCA's Component Scanner 5335 | -8/Scraptown | Visited Cartography Club 6158 | -8/Scraptown | Discovered new exit (range 5) 6349 | -8/Scraptown | Visited Scrap Suit Storage 6425 | -8/Scraptown | Visited Curators Association 6496 | -8/Scraptown | Visited Science Guys 7382 | -8/Scraptown | Learned location of Zion (-7) 7382 | -8/Scraptown | Learned location of Warlord (-4) 7382 | -8/Scraptown | Learned 16 Materials zone layouts 7382 | -8/Scraptown | Learned 8 Factory zone layouts 7382 | -8/Scraptown | Learned 16 Factory zone layouts 7382 | -8/Scraptown | Learned 20 Factory zone layouts 7382 | -8/Scraptown | Learned 8 Research zone layouts 7382 | -8/Scraptown | Learned 12 Lower Caves zone layouts 7382 | -8/Scraptown | Learned 8 Proximity Caves zone layouts 7382 | -8/Scraptown | Learned 16 Proximity Caves zone layouts 7382 | -8/Scraptown | Learned 20 Proximity Caves zone layouts 7382 | -8/Scraptown | Learned location of 1 exit from Research 7382 | -8/Scraptown | Learned location of 1 exit from Upper Caves 7382 | -8/Scraptown | Learned location of 1 exit from Proximity Caves 7414 | -8/Scraptown | Found Deep Structural Scanner 8985 | -8/Scraptown | Met Optimus 8985 | -8/Scraptown | Accepted into 0bPrime 9126 | -8/Scraptown | Entered Factory 9126 | -6/Factory | Evolved 8 slots: Power x1, Propulsion x4, Utility x3 9127 | -6/Factory | Identified exit to Factory 9127 | -6/Factory | Identified exit to Lower Caves 9129 | -6/Factory | Loaded intel: 73 trap records 9438 | -6/Factory | Build established: Derelict-Mutant 9562 | -6/Factory | Destroyed 7 combat bots 9633 | -6/Factory | Repaired Airjet 9654 | -6/Factory | Repaired Airjet 9701 | -6/Factory | Loaded intel: 8 recycling unit locations 9735 | -6/Factory | Learned location of Protoforge (-2) 10167 | -6/Factory | Build established: Mutant 10260 | -6/Factory | Entered Lower Caves 10261 | -6/Lower Caves | Identified exit to Lower Caves 10318 | -6/Lower Caves | Encountered a Warlord checkpoint 10348 | -6/Lower Caves | Learned location of 1 exit from Lower Caves 10366 | -6/Lower Caves | Entered a destroyed Warlord outpost 10505 | -6/Lower Caves | Entered another Lower Caves area 10506 | -6/Lower Caves | Identified exit to Data Miner 10526 | -6/Lower Caves | Learned 4 Factory zone layouts 10552 | -6/Lower Caves | Encountered a Warlord checkpoint 10639 | -6/Lower Caves | Entered Data Miner 10639 | -6/Data Miner | Discovered new exit (range 6) 10649 | -6/Data Miner | Met Data Miner 10657 | -6/Data Miner | Learned location of Section 7 (-2) 10657 | -6/Data Miner | Acquired the access code to Warlord's prototype stash 10667 | -6/Data Miner | Received God Mode back door access code from Data Miner 10688 | -6/Data Miner | Identified exit to Proximity Caves 10691 | -6/Data Miner | Entered Proximity Caves 10694 | -5/Proximity Caves | Spotter reported a threat 10696 | -5/Proximity Caves | Spotter reported a threat 10787 | -5/Proximity Caves | Learned Factory emergency access door positions 10789 | -5/Proximity Caves | Learned Factory terminal intel 10851 | -5/Proximity Caves | Entered Factory 10851 | -5/Factory | Evolved 2 slots: Utility x2 10852 | -5/Factory | Identified exit to Upper Caves 10855 | -5/Factory | Loaded intel: 25 terminal locations 10938 | -5/Factory | Loaded intel: 8 recycling unit locations 11154 | -5/Factory | Build established: Hacker-Scout 11427 | -5/Factory | System corruption reached 10% 11452 | -5/Factory | Discovered new exit (range 14) 11459 | -5/Factory | Identified exit to Factory 11999 | -5/Factory | Lost 3 parts (2p1u) 12022 | -5/Factory | Build established: Hacker-Mutant 12290 | -5/Factory | Lost 3 parts (1p1u1w) 12332 | -5/Factory | Entered another Factory area 12332 | -4/Factory | Evolved 2 slots: Utility x2 12701 | -4/Factory | Loaded intel: 8 recycling unit locations 12845 | -4/Factory | Lost 9 parts (2p2n3u2w) 12849 | -4/Factory | Discovered new exit (range 10) 12867 | -4/Factory | Discovered new exit (range 15) 12875 | -4/Factory | Identified exit to Research 13216 | -4/Factory | Entered Research 13216 | -3/Research | Evolved 2 slots: Propulsion x1, Utility x1 13217 | -3/Research | Identified exit to Research 13539 | -3/Research | Core integrity fell below 50% 13568 | -3/Research | Scrapoids reinforcements arrived? 13580 | -3/Research | Lost 25 parts (6p9n5u5w) 13586 | -3/Research | Incoming investigation squad redirected 13609 | -3/Research | Lost 3 allies 13802 | -3/Research | Found Fusion Bomb Launcher 13835 | -3/Research | System corruption reached 10% 13855 | -3/Research | Discovered new exit (range 15) 13871 | -3/Research | Identified exit to Quarantine 13873 | -3/Research | Entered Quarantine 13923 | -3/Quarantine | Cryocooling Duct disabled 13938 | -3/Quarantine | Ambient heat levels rising (+20) 13938 | -3/Quarantine | Non-combat units ordered to evacuate 13953 | -3/Quarantine | Build established: Scavenger-Mutant 14022 | -3/Quarantine | Found Alien Artifact 14022 | -3/Quarantine | Identified Terrabomb 14022 | -3/Quarantine | Used Terrabomb 14152 | -3/Quarantine | Found Alien Artifact 14152 | -3/Quarantine | Identified Subatomic Replicator 14179 | -3/Quarantine | Core integrity fell below 20% 14245 | -3/Quarantine | Lost 8 parts (2p4n2u) 14337 | -3/Quarantine | Found Fusion Bomb Launcher 14374 | -3/Quarantine | Found Alien Slashing Weapon 14374 | -3/Quarantine | Identified Sigix Broadsword 14432 | -3/Quarantine | Found Alien Energy Cannon 14432 | -3/Quarantine | Identified Core Cannon 14456 | -3/Quarantine | Build established: Hacker-Mutant 14478 | -3/Quarantine | Entered Research 14478 | -2/Research | Evolved 2 slots: Propulsion x1, Utility x1 14509 | -2/Research | Identified exit to Access 14528 | -2/Research | Identified exit to Testing 14636 | -2/Research | Loaded intel: 5 recycling unit locations 14662 | -2/Research | Incoming investigation squad redirected 14694 | -2/Research | Incoming investigation squad redirected 14787 | -2/Research | Entered Testing 14789 | -2/Testing | Build established: Wizard-Mutant 14798 | -2/Testing | Protovariant out of control (PG-8T9MJSFCH1) 14798 | -2/Testing | Unleashed a protovariant (PG-8T9MJSFCH1) 14826 | -2/Testing | Incoming assault squad redirected 14833 | -2/Testing | Garrison activated, responded to threat 14890 | -2/Testing | Spotted Alpha 7 14892 | -2/Testing | Scanned by Researcher 14954 | -2/Testing | Found Prototype Energy Cannon 14954 | -2/Testing | Identified Cld. Nova Cannon 14969 | -2/Testing | Core integrity fell below 50% 14975 | -2/Testing | Core integrity fell below 20% 14978 | -2/Testing | Destroyed by G-73 Enforcer with Heavy Laser Last Messages --------------- 14971_ Slug penetrates Machine. 14972_ Slug penetrates G-73 Enforcer. 14972_ Penetrated by Slug. 14972_ Imp. Hacking Suite destroyed. 14973_ K-01 Serf cleans the Machine. 14973_ Penetrated by Slug. 14973_ Slug penetrates Wall. 14973_ Slug penetrates Machine. 14974_ Penetrated by Slug. 14974_ Slug penetrates Machine. 14974_ G-73 Enforcer suffers critical hit (Destroy). 14974_ Penetrated by Slug. 14974_ Slug penetrates Wall. 14974_ R-10 Processor collects Adv. Corruption Screen. 14975_ Machine collapses. 14975_ Machine disabled. 14975_ Slug penetrates Wall. 14976_ Slammed into G-73 Enforcer. 14976_ M-13 Machinist repairs M-13 Machinist Wheel. 14977_ Slammed into G-73 Enforcer. Map ----- +----------------------------------------------------+ | ???????? #??????????????????????????? | | ???????? #??????????????????????????? | | # ## ###??????# ####???????????????????????? | | = #??????# #???????????????????????? | | !* #??????# #???????????????????????? | | #??????# ????????????????????????? | | [! #??????#! #??????????????????????????? | | ####"###$ #??????????????????????????? | | "" /!$$ | * #??????????????????????????? | | = "" #########"########?????????????????????? | | *!"" #???# !]! #?????????????????????? | | # %! ##??# " "]!!#?????????????????????? | | ## ######## """"" "! ##????????????????????? | | # ## """" """ ;#????????????????????? | | # """ = ## "" w#?????????????????????? | | + """ ## " " h#?????????????????????? | | o# """ ## """h #?????????????????????? | | # """ " " ## g g#?????????????????????? | | "! """ "T" ## h #?????????????????????? | | # """ ## hh#?????????????????????? | | ############## #?????????????????????? | | ##"########### gg #?????????????????????? | | # ###########;##?????????????????????? | | # ""#?????????#g#??????????????????????? | | # ""#?????????#g#??????????????????????? | | #] """"" ""#?????????#@#??????????????????????? | | # ]""""" T#?????????#g#??????????????????????? | | # ] """" ""#?????????# #???????+???+??????????? | | + "#????????? +??????????????????????? | | # """"" ""#????????? #??????????????????????? | | # """"" #????????? A#??????????????????????? | | # """"" #????????? w??????????????????????? | | # = #????????####??????????????????????? | | # #??????????????????????????????????? | | #####+########??????????????????????????????????? | | # #?????????????????????????????????????? | | + ! #?????????????????????????????????????? | | # #?????????????????????????????????????? | | # #?????????????????????????????????????? | | #? #?????????????????????????????????????? | | ##? #?????????????????????????????????????? | | ???? #?????????????????????????????????????? | | ???? #?????????????????????????????????????? | | ?????#######?????????????????????????????????????? | | ?????????????????????????????????????????????????? | | ?????????????????????????????????????????????????? | | ?????????????????????????????????????????????????? | | ?????????????????????????????????????????????????? | | ?????????????????????????????????????????????????? | | ?????????????????????????????????????????????????? | +----------------------------------------------------+ Best States ------------- Heat Dissipation 74 Energy Generation 43 Energy Capacity 315 Matter Stores 300 Matter Capacity 300 Sight Range 16 Robot Scan Range 16 Terrain Scan Density 10 Cloak Strength 2 Power Amplification 20 Base Temperature (-) 200 Armor Coverage 150 Evasion (%) 57 Recoil Reduction 4 Offensive Hacking 42 Defensive Hacking 28 Item Schematics ----------------- Combat Drone Bay | -6/Data Miner | Free Lgt. Regenerative Plating | -6/Data Miner | Free Enh. Flexi-carbon Leg | -6/Data Miner | Free Prc. Energy Filter | -6/Data Miner | Free Tiamat Missile Launcher | -6/Data Miner | Free Hvy. Siege Treads | -6/Data Miner | Free Adv. Transmission Jammer | -6/Data Miner | Free Dispersion Rifle | -6/Data Miner | Free Adv. Plasma Cannon | -6/Data Miner | Free Hardcell Cannon | -6/Data Miner | Free Imp. Thunder Leg | -6/Data Miner | Free Linear Accelerator | -6/Data Miner | Free Vibroblade | -2/Testing | Archive Gui. Micro-nuke Launcher | -2/Testing | Archive Exp. Thermal Generator | -2/Testing | Archive Robot Schematics ------------------ G-50 Soldier | -6/Data Miner | Free Y-64 Sentinel | -6/Data Miner | Free S-27 Virus | -6/Data Miner | Free X-72 Disruptor | -6/Data Miner | Free W-44 Eye | -6/Data Miner | Free M-22 Extractor | -6/Data Miner | Free B-60 Warrior | -6/Data Miner | Free Fabricated ------------ Nothing Repaired ---------- Airjet | 2% | -6/Factory Airjet | 15% | -6/Factory Alien Tech Used ----------------- Terrabomb Subatomic Replicator Sigix Broadsword Core Cannon Achievements -------------- Rampage Challenges ------------ None Game ------ Seed HardcellHeavyWand Manual? 0 Play Time 02:44:43 Cumulative 139.1 hours Start 2025.06.26 @ 21:04:54 End 2025.06.28 @ 23:34:22 Sessions 10 Manual Loads 0 Difficulty Rogue Special Mode None Game No. 74 Rogue 70 Adventurer 4 Explorer 0 Win Type - Total 3 Types 2/0/0/1/0/0/0/0/0/0 Lore% 64 Gallery% 56 Achievement% 47 Wizard Run 0 Options --------- Layout 0 ASCII 0 Keyboard 1 Movement Vi Keybinds 0 Fullscreen 1 Font 24/Crisp Map View 76x50 Zoom Use 0% Tactical HUD 1 Map Filters NONE Filters NONE Steam 1 RUN: f785f24d-ed4b-4d5e-bbdf-29221197e9fe